bitfinex-derivatives/quotes_SOLF0:USTF0_20250705
["timestamp","ask_amount","ask_price","bid_price","bid_amount"]
[1751698153618,6.7502,148.11,148.09,2.33250798]
[1751698156025,6.7505,148.1,148.09,2.33250798]
[1751698156512,6.7502,148.11,148.09,2.33250798]
[1751698157015,2.33250798,148.13,148.08,46.0]
[1751698157216,12.93927865,148.12,148.09,2.33250798]
[1751698157418,12.93927865,148.12,148.08,240.22]
[1751698157419,6.7505,148.1,148.08,242.55250798]
[1751698158226,6.7502,148.11,148.08,242.55250798]
[1751698158520,5.67762335,148.1,148.09,2.33250798]
[1751698166030,6.29529922,148.13,148.09,2.33250798]
[1751698166328,6.29529922,148.16,148.12,2.33250798]
[1751698166530,4.87380452,148.15,148.14,2.33250798]
[1751698167224,4.87370539,148.15,148.14,2.33250798]
[1751698168529,4.87370539,148.15,148.14,9.08120798]
[1751698168925,6.7475,148.17,148.14,9.08120798]
[1751698169127,4.8743288,148.16,148.15,2.33250798]
[1751698169720,4.8743288,148.16,148.14,6.7487]
[1751698169920,6.7475,148.17,148.14,6.7487]
[1751698170128,4.87389143,148.16,148.14,6.7487]
[1751698170329,6.7475,148.17,148.14,6.7487]
[1751698170524,4.87350657,148.16,148.14,6.7487]
[1751698170723,6.7475,148.17,148.14,6.7487]
[1751698170924,4.87350657,148.16,148.14,6.7487]
[1751698171122,6.7475,148.17,148.14,6.7487]
[1751698171425,4.87333517,148.16,148.14,6.7487]
[1751698171622,6.7475,148.17,148.14,6.7487]
[1751698171928,11.16846082,148.16,148.13,46.0]
[1751698172121,13.05563229,148.18,148.13,46.0]
[1751698172122,11.16846082,148.15,148.13,46.0]
[1751698172325,4.8731616,148.14,148.13,46.0]
[1751698172523,11.6218616,148.14,148.13,46.0]
[1751698176133,11.6719725,148.14,148.13,46.0]
[1751698177638,11.6719725,148.14,148.12,194.52]
[1751698177829,4.9232725,148.13,148.12,194.5]
[1751698178033,5.69746716,148.13,148.12,194.5]
[1751698184845,12.44656716,148.13,148.12,194.5]
[1751698185044,5.69746716,148.13,148.11,194.36]
[1751698185346,5.69746716,148.12,148.11,194.36]
[1751698186039,5.69746716,148.12,148.1,46.0]
[1751698186237,6.29529922,148.15,148.11,198.02217565]
[1751698186442,10.61398711,148.14,148.11,198.02217565]
[1751698186643,10.61398711,148.13,148.11,204.77177565]
[1751698186844,10.61398711,148.12,148.11,204.77177565]
[1751698187144,10.61398711,148.12,148.11,204.79177565]
[1751698187647,5.69889095,148.12,148.11,204.79177565]
[1751698190546,6.29529922,148.16,148.11,198.04217565]
[1751698190736,10.59081378,148.15,148.11,198.04217565]
[1751698190938,10.59081378,148.14,148.11,198.04217565]
[1751698191141,5.69441067,148.13,148.12,6.7496]
[1751698191342,5.69441067,148.13,148.12,10.39177565]
[1751698191749,5.69441067,148.13,148.12,9.08064972]
[1751698193751,5.69441067,148.13,148.12,10.39216332]
[1751698205580,5.69441067,148.13,148.12,6.7496]
[1751698205881,5.69441067,148.13,148.12,10.39216332]
[1751698209674,5.69441067,148.13,148.12,6.7496]
[1751698210182,10.6084351,148.13,148.12,6.7496]
[1751698215787,10.6084351,148.13,148.12,9.08092507]
[1751698216584,5.69441067,148.13,148.12,9.08092507]
[1751698216788,10.59905756,148.13,148.12,9.08092507]
[1751698222484,5.69441067,148.13,148.12,9.08092507]
[1751698222690,10.60026037,148.13,148.12,9.08092507]
[1751698224190,6.29529922,148.17,148.12,2.33132507]
[1751698224488,13.04259922,148.17,148.16,2.33132507]
[1751698224690,13.74211534,148.17,148.16,196.51132507]
[1751698228495,6.99481534,148.17,148.16,196.51132507]
[1751698230385,13.04229922,148.18,148.16,196.51132507]
[1751698231090,6.7473,148.17,148.16,196.51132507]
[1751698232787,13.04229922,148.18,148.16,196.51132507]
[1751698234495,6.7473,148.17,148.16,196.51132507]
[1751698235993,17.25488508,148.17,148.16,196.51132507]
[1751698236794,10.50758508,148.17,148.16,196.51132507]
[1751698237294,5.70379048,148.17,148.16,196.51132507]
[1751698242994,12.45109048,148.17,148.16,194.18]
[1751698243295,12.45109048,148.17,148.16,196.51132507]
[1751698244496,12.45109048,148.17,148.16,194.18]
[1751698244793,12.45109048,148.17,148.16,196.51132507]
[1751698245994,12.45109048,148.17,148.16,194.18]
[1751698248199,6.7478,148.16,148.14,2.33132507]
[1751698248495,6.7478,148.16,148.15,194.14]
[1751698248697,6.7478,148.16,148.15,196.47132507]
[1751698250400,16.40226718,148.16,148.15,196.47132507]
[1751698251300,6.7478,148.16,148.15,196.47132507]
[1751698251494,16.40234534,148.16,148.15,196.47132507]
[1751698252201,16.40238396,148.16,148.15,196.47132507]
[1751698255103,9.65458396,148.16,148.15,196.47132507]
[1751698255403,4.79411543,148.16,148.15,196.47132507]
[1751698257610,4.79411543,148.16,148.15,203.21952507]
[1751698258107,4.79411543,148.16,148.15,200.8882]
[1751698258310,4.79411543,148.16,148.15,203.21952507]
[1751698264712,5.70379048,148.17,148.15,203.21952507]
[1751698265010,5.70379048,148.17,148.16,2.33132507]
[1751698268011,5.70379048,148.17,148.15,200.8882]
[1751698268217,5.70379048,148.17,148.16,2.33132507]
[1751698272917,10.48753968,148.17,148.16,2.33132507]
[1751698273416,10.48743872,148.17,148.16,2.33132507]
[1751698274111,17.23473872,148.17,148.16,2.33132507]
[1751698275223,10.48743872,148.17,148.16,2.33132507]
[1751698277622,17.23473872,148.17,148.16,2.33132507]
[1751698278123,17.23878026,148.17,148.16,2.33132507]
[1751698278923,17.23878026,148.17,148.15,194.14]
[1751698279122,4.78768978,148.16,148.15,194.14]
[1751698279822,4.78768978,148.16,148.15,200.8882]
[1751698280024,4.78768978,148.16,148.15,203.21952507]
[1751698283930,4.78768978,148.16,148.15,203.21872087]
[1751698284922,5.70379048,148.17,148.16,6.7477]
[1751698285127,10.48132826,148.17,148.16,6.7477]
[1751698285629,10.48132826,148.17,148.16,9.07822087]
[1751698287228,5.70379048,148.17,148.16,9.07822087]
[1751698287426,5.70379048,148.17,148.16,9.07754329]
[1751698293034,5.70379048,148.17,148.16,6.7477]
[1751698293230,5.70379048,148.17,148.16,9.07754329]
[1751698293632,5.70379048,148.17,148.14,2.32984329]
[1751698293834,4.77484558,148.16,148.15,194.04]
[1751698295434,11.52254558,148.16,148.14,194.04]
[1751698295630,6.7477,148.16,148.14,194.04]
[1751698296534,6.7477,148.16,148.14,200.7886]
[1751698297234,12.45129048,148.17,148.14,200.7886]
[1751698297427,4.79609266,148.16,148.14,200.7886]
[1751698297632,4.79623158,148.15,148.14,203.11844329]
[1751698298224,5.70379048,148.17,148.15,6.7481]
[1751698298528,4.78697099,148.16,148.15,9.07794329]
[1751698301640,5.70379048,148.17,148.16,6.7477]
[1751698301834,10.49161266,148.17,148.16,9.07754329]
[1751698303138,10.4922535,148.17,148.16,9.07754329]
[1751698303636,10.49231495,148.17,148.16,9.07754329]
[1751698305341,5.70379048,148.17,148.16,9.07754329]
[1751698344487,5.70379048,148.17,148.16,6.7477]
[1751698344685,5.70379048,148.17,148.16,9.07754329]
[1751698350086,5.70379048,148.17,148.16,54.97754329]
[1751698353590,5.70379048,148.17,148.16,54.97716363]
[1751698365602,4.33492671,148.2,148.19,6.7464]
[1751698365807,14.86510424,148.2,148.19,202.93586363]
[1751698366302,14.86510424,148.2,148.19,202.93567949]
[1751698367308,14.86510424,148.2,148.19,193.86]
[1751698367510,14.86510424,148.2,148.19,196.18927949]
[1751698368109,14.86510424,148.2,148.19,202.93567949]
[1751698368711,14.86510424,148.2,148.19,202.93582082]
[1751698370613,14.86508435,148.2,148.19,202.93582082]
[1751698379014,10.04310285,148.2,148.19,202.93582082]
[1751698379209,14.86701841,148.2,148.19,202.93582082]
[1751698383622,14.86701841,148.2,148.19,248.81582082]
[1751698384625,14.86654119,148.2,148.19,248.81582082]
[1751698384819,14.86654119,148.2,148.19,248.81557012]
[1751698388325,10.04310285,148.2,148.19,248.81557012]
[1751698388922,10.04310285,148.2,148.19,6.7464]
[1751698389124,14.86201029,148.2,148.19,196.14917012]
[1751698390030,14.86201029,148.2,148.19,202.89557012]
[1751698393227,14.86201029,148.2,148.19,200.5664]
[1751698393431,14.86201029,148.2,148.19,202.89557012]
[1751698394125,8.684148,148.24,148.19,196.14917012]
[1751698394433,6.316048,148.25,148.23,2.32917012]
[1751698394632,6.316048,148.26,148.24,242.00917012]
[1751698394833,13.058048,148.29,148.25,2.32917012]
[1751698395027,13.40390345,148.28,148.26,193.8]
[1751698395331,10.73348304,148.3,148.26,193.8]
[1751698395332,6.316048,148.29,148.26,202.87217012]
[1751698395525,11.22020226,148.28,148.26,193.8]
[1751698395725,8.64521812,148.28,148.26,193.8]
[1751698396127,6.316048,148.28,148.26,193.8]
[1751698396331,8.64521812,148.28,148.26,193.8]
[1751698396532,15.38761812,148.28,148.26,193.8]
[1751698396932,6.316048,148.28,148.26,200.5431]
[1751698397336,6.316048,148.29,148.26,193.8]
[1751698397632,8.64521812,148.29,148.26,193.8]
[1751698398029,8.64521812,148.29,148.27,6.7427]
[1751698398427,8.64521812,148.29,148.28,193.78]
[1751698398727,13.58298168,148.29,148.28,193.78]
[1751698398924,20.32478168,148.29,148.28,193.78]
[1751698399130,16.18781935,148.29,148.22,45.88]
[1751698399331,2.32917012,148.25,148.24,193.78]
[1751698399932,6.29579149,148.26,148.24,193.78]
[1751698400231,6.7436,148.25,148.24,193.78]
[1751698400431,9.44819393,148.25,148.18,48.20917012]
[1751698400636,2.32917012,148.22,148.19,193.78]
[1751698400840,2.32917012,148.23,148.19,193.78]
[1751698401031,2.32917012,148.23,148.19,196.10917012]
[1751698401237,6.7448,148.23,148.2,9.07477012]
[1751698404239,6.7448,148.23,148.2,6.7456]
[1751698404939,9.07397012,148.23,148.2,6.7456]
[1751698405542,6.7451,148.22,148.19,200.5263]
[1751698405744,6.7451,148.22,148.19,202.85547012]
[1751698406237,9.07387012,148.23,148.19,202.85547012]
[1751698406445,10.53202074,148.22,148.19,202.85547012]
[1751698406645,9.07387012,148.23,148.19,202.85547012]
[1751698406834,10.53202074,148.22,148.19,202.85547012]
[1751698407038,9.07387012,148.23,148.19,202.85547012]
[1751698407238,10.53204998,148.22,148.19,202.85547012]
[1751698407443,9.07387012,148.23,148.19,202.85547012]
[1751698407643,10.53215538,148.22,148.19,202.85547012]
[1751698407843,9.07387012,148.23,148.19,202.85547012]
[1751698408044,5.64356755,148.22,148.2,6.7458]
[1751698408247,2.3505,148.24,148.19,193.78]
[1751698408440,10.53184747,148.23,148.21,2.32917012]
[1751698408645,2.3505,148.24,148.22,193.78]
[1751698408848,10.53138608,148.23,148.22,193.78]
[1751698410349,19.15762366,148.23,148.2,45.86]
[1751698410650,5.64322638,148.22,148.2,239.64]
[1751698410847,6.29706746,148.25,148.2,239.64]
[1751698411047,10.52595012,148.24,148.2,239.64]
[1751698411248,10.52595012,148.23,148.22,2.32917012]
[1751698411445,10.52595012,148.23,148.21,2.32917012]
[1751698411747,10.52595012,148.23,148.2,239.64]
[1751698411748,6.744,148.25,148.2,239.64]
[1751698411943,10.52580985,148.24,148.2,239.64]
[1751698412145,15.41676339,148.23,148.2,239.64]
[1751698412345,10.52580985,148.22,148.2,239.64]
[1751698412544,5.63752762,148.21,148.2,239.64]
[1751698412944,5.63752762,148.21,148.2,246.3856]
[1751698413145,5.69846846,148.21,148.2,246.3856]
[1751698413852,5.69846846,148.21,148.2,239.64]
[1751698414654,5.69846846,148.21,148.2,246.3859]
[1751698415348,6.7436,148.25,148.2,246.3859]
[1751698415548,10.56844406,148.24,148.16,2.3426]
[1751698415753,14.20716797,148.23,148.17,45.86]
[1751698415949,10.56844406,148.22,148.17,242.2]
[1751698416153,10.5694232,148.21,148.17,242.2]
[1751698416349,5.6993816,148.2,148.17,242.2]
[1751698416547,5.6993816,148.19,148.17,242.2]
[1751698416747,13.04246746,148.22,148.17,45.86]
[1751698416954,10.5798686,148.21,148.18,196.36]
[1751698417153,5.69938001,148.2,148.19,196.4]
[1751698418651,10.57061176,148.2,148.19,196.4]
[1751698419452,17.31651176,148.2,148.19,196.4]
[1751698420248,10.57061176,148.2,148.17,45.86]
[1751698420457,14.20933567,148.19,148.17,45.86]
[1751698420656,10.57061176,148.18,148.17,45.86]
[1751698420956,23.88424675,148.18,148.13,45.86]
[1751698421153,10.57061176,148.17,148.13,45.86]
[1751698421349,10.57061176,148.16,148.14,196.28]
[1751698421650,5.69938001,148.15,148.14,196.28]
[1751698422159,2.2157,148.18,148.14,6.7487]
[1751698422347,10.3445213,148.17,148.14,196.26]
[1751698422654,5.53457803,148.16,148.13,52.6088]
[1751698422849,6.7476,148.17,148.14,196.26]
[1751698423056,5.63776589,148.16,148.14,196.26]
[1751698423259,6.7476,148.17,148.14,196.26]
[1751698423444,5.63595295,148.16,148.14,196.26]
[1751698423649,6.7476,148.17,148.14,196.26]
[1751698423853,5.63595295,148.16,148.14,203.0086]
[1751698424048,6.7476,148.17,148.14,203.0086]
[1751698424249,5.63429787,148.16,148.14,203.0086]
[1751698424449,6.7476,148.17,148.14,203.0086]
[1751698424747,5.63429787,148.16,148.14,203.0086]
[1751698424946,6.7476,148.17,148.14,203.0086]
[1751698425159,5.63429787,148.16,148.14,203.0086]
[1751698425349,6.7476,148.17,148.14,203.0086]
[1751698425549,5.61062909,148.16,148.14,203.0086]
[1751698425752,6.7476,148.17,148.14,203.0086]
[1751698425954,5.61062909,148.16,148.14,203.0086]
[1751698426153,6.7476,148.17,148.14,203.0086]
[1751698426659,8.9627,148.18,148.15,6.7481]
[1751698426860,5.60911829,148.17,148.15,6.7481]
[1751698427051,6.7473,148.17,148.14,203.0085]
[1751698427852,9.92990182,148.21,148.15,6.7481]
[1751698428061,10.34860051,148.2,148.14,196.26]
[1751698428254,10.34860051,148.19,148.14,196.26]
[1751698428453,5.60813836,148.18,148.13,49.49872391]
[1751698428661,5.60813836,148.17,148.14,196.22]
[1751698428957,3.63872391,148.19,148.14,196.22]
[1751698429260,6.7474,148.17,148.14,202.9684]
[1751698430061,6.7478,148.16,148.14,196.22]
[1751698430857,6.7475,148.17,148.14,196.22]
[1751698432057,6.7475,148.17,148.14,202.9684]
[1751698433959,6.7475,148.17,148.15,6.7482]
[1751698434261,6.7475,148.17,148.14,202.9684]
[1751698436861,6.7478,148.16,148.14,202.9684]
[1751698437162,8.37347662,148.2,148.14,202.9684]
[1751698437360,10.33596474,148.19,148.14,202.9684]
[1751698437660,12.34851203,148.18,148.14,202.9684]
[1751698437958,3.63872391,148.2,148.14,202.9684]
[1751698438263,6.7473,148.18,148.14,202.9684]
[1751698438659,12.34817786,148.17,148.14,202.9684]
[1751698438857,6.7473,148.17,148.14,202.9684]
[1751698441966,6.7482,148.15,148.14,196.22]
[1751698442166,6.7482,148.15,148.14,196.38]
[1751698442562,6.7484,148.15,148.13,45.86]
[1751698442768,6.7484,148.15,148.13,242.24]
[1751698443259,6.7484,148.15,148.13,242.22]
[1751698443664,6.7484,148.15,148.13,242.2]
[1751698444268,5.61352181,148.14,148.13,242.2]
[1751698444471,6.7484,148.15,148.13,242.2]
[1751698445776,5.60256887,148.14,148.13,242.2]
[1751698446179,6.7484,148.15,148.13,242.2]
[1751698448582,6.7487,148.14,148.13,242.2]
[1751698448983,6.7492,148.13,148.09,49.125]
[1751698449176,8.53027791,148.17,148.09,46.7]
[1751698449485,3.63872391,148.14,148.1,196.26]
[1751698449681,5.63504337,148.13,148.1,196.26]
[1751698449981,5.63517298,148.12,148.1,196.26]
[1751698450180,3.63872391,148.14,148.1,196.26]
[1751698450380,5.634403,148.13,148.1,196.26]
[1751698450584,12.384103,148.12,148.1,196.26]
[1751698450783,6.7497,148.12,148.1,196.26]
[1751698452276,6.75,148.11,148.09,46.7]
[1751698452473,6.75,148.11,148.1,196.24]
[1751698452673,5.74243453,148.11,148.1,196.24]
[1751698453384,5.74243453,148.11,148.09,53.4509]
[1751698453590,3.63872391,148.14,148.1,196.22]
[1751698453884,5.74194551,148.13,148.1,196.22]
[1751698454086,12.49184551,148.12,148.1,196.22]
[1751698454281,5.74194551,148.11,148.1,196.22]
[1751698462389,12.49204551,148.11,148.09,46.7]
[1751698462689,6.7501,148.11,148.1,196.04]
[1751698462882,12.47621343,148.11,148.1,196.04]
[1751698465090,5.72611343,148.11,148.1,196.04]
[1751698466392,5.72611343,148.11,148.1,202.7905]
[1751698469894,6.7492,148.13,148.1,202.7905]
[1751698470092,5.7284879,148.12,148.1,202.7905]
[1751698470388,6.7492,148.13,148.1,202.7905]
[1751698470587,5.72875263,148.12,148.1,202.7905]
[1751698470786,5.72888238,148.11,148.1,202.7905]
[1751698472498,5.72888238,148.11,148.1,196.04]
[1751698473393,5.72888238,148.11,148.1,202.7905]
[1751698481498,12.47888238,148.11,148.1,196.04]
[1751698481700,17.14490843,148.11,148.1,196.04]
[1751698482095,17.14490843,148.11,148.09,242.2]
[1751698482290,5.72888238,148.1,148.09,242.2]
[1751698485004,12.47938238,148.1,148.09,242.2]
[1751698485902,17.20683407,148.1,148.09,242.2]
[1751698486195,17.20683407,148.1,148.09,242.16]
[1751698486396,10.45633407,148.1,148.09,242.16]
[1751698489404,10.45633407,148.1,148.09,248.9109]
[1751698489605,5.72888238,148.1,148.09,248.9109]
[1751698490303,5.72888238,148.1,148.09,248.7909]
[1751698493308,10.46364144,148.1,148.09,248.7909]
[1751698496608,5.72888238,148.1,148.09,248.7909]
[1751698503809,5.72888238,148.1,148.09,251.12335913]
[1751698504918,5.72888238,148.1,148.09,248.7909]
[1751698505216,5.72888238,148.1,148.09,242.04]
[1751698505614,12.47938238,148.1,148.09,242.04]
[1751698505910,23.51820247,148.1,148.09,242.04]
[1751698506317,16.76770247,148.1,148.09,242.04]
[1751698507118,23.51820247,148.1,148.09,46.7]
[1751698507321,23.51820247,148.1,148.09,194.98]
[1751698507518,16.76770247,148.1,148.09,194.98]
[1751698508115,16.76770247,148.1,148.09,201.7309]
[1751698509912,16.76770247,148.1,148.09,201.7109]
[1751698510108,5.72888238,148.1,148.09,204.04335913]
[1751698511425,10.47280178,148.1,148.09,204.04318078]
[1751698511716,10.47280178,148.1,148.09,194.96]
[1751698512320,10.47280178,148.1,148.09,194.86]
[1751698512521,16.75681556,148.1,148.09,194.86]
[1751698513324,23.50761556,148.1,148.07,2.33228078]
[1751698513623,5.72888238,148.09,148.08,194.86]
[1751698513823,5.72888238,148.09,148.07,2.33228078]
[1751698514024,5.72888238,148.08,148.06,2.33228078]
[1751698514225,5.72888238,148.07,148.06,2.33228078]
[1751698514426,5.72888238,148.07,148.06,197.17228078]
[1751698514818,5.72888238,148.07,148.06,201.592]
[1751698515423,10.4718881,148.07,148.06,194.84]
[1751698516123,17.2237881,148.07,148.06,194.82]
[1751698516529,17.2237881,148.07,148.05,46.32]
[1751698516727,5.72888238,148.06,148.05,241.18]
[1751698517123,5.72888238,148.06,148.05,247.9328]
[1751698519326,5.72888238,148.06,148.05,46.32]
[1751698519528,5.72888238,148.06,148.05,241.14]
[1751698521132,5.72888238,148.06,148.05,46.32]
[1751698521332,5.72888238,148.06,148.05,241.1]
[1751698523532,12.48118238,148.06,148.05,241.1]
[1751698524936,5.72888238,148.06,148.05,241.1]
[1751698525638,5.72888238,148.06,148.05,241.06]
[1751698526738,12.48118238,148.06,148.05,241.06]
[1751698527638,12.48118238,148.06,148.04,194.74]
[1751698527837,5.72888238,148.05,148.04,194.74]
[1751698528335,5.72888238,148.05,148.03,6.7535]
[1751698528538,6.7523,148.06,148.04,194.7]
[1751698528738,5.78033641,148.05,148.01,629.32]
[1751698528936,5.78033641,148.04,148.02,194.68]
[1751698529137,3.64686248,148.06,148.02,194.68]
[1751698529334,5.77425441,148.05,148.02,194.68]
[1751698529534,5.77425441,148.04,148.02,194.68]
[1751698529839,3.64686248,148.06,148.02,194.68]
[1751698530043,5.77425441,148.05,148.02,194.68]
[1751698530241,5.77425441,148.04,148.02,194.68]
[1751698530443,6.753,148.05,148.02,201.4339]
[1751698530640,5.77344864,148.04,148.02,194.68]
[1751698530943,6.753,148.05,148.03,194.66]
[1751698531143,5.77344864,148.04,148.01,46.34]
[1751698531441,5.77327033,148.03,148.02,194.66]
[1751698532542,12.52697033,148.03,148.02,194.66]
[1751698533144,12.52697033,148.03,148.01,46.34]
[1751698533344,5.77327033,148.02,148.01,240.98]
[1751698534144,5.77327033,148.02,147.98,6.7558]
[1751698534345,5.77327033,148.01,147.98,201.3758]
[1751698534545,9.93087626,148.04,147.98,201.3758]
[1751698534745,6.7545,148.02,147.98,201.3958]
[1751698534941,5.74307904,148.01,147.98,201.3958]
[1751698535142,9.93087626,148.05,147.98,194.64]
[1751698535341,10.40922608,148.04,147.98,194.64]
[1751698535547,12.4945102,148.03,147.98,194.64]
[1751698535844,5.7407102,148.02,147.98,194.64]
[1751698536045,6.7538,148.03,147.98,194.64]
[1751698536547,12.49334097,148.02,147.98,194.64]
[1751698536748,6.7541,148.02,147.98,194.64]
[1751698536944,6.7541,148.02,147.99,6.7552]
[1751698538236,9.93087626,148.05,147.99,6.7552]
[1751698538442,6.7539,148.03,148.0,6.7549]
[1751698538737,5.73659656,148.02,148.0,6.7549]
[1751698538938,6.7539,148.03,148.0,6.7549]
[1751698539141,5.73096042,148.02,148.0,6.7549]
[1751698539343,6.7539,148.03,148.0,6.7549]
[1751698539545,5.72970084,148.02,148.0,6.7549]
[1751698539741,9.08955261,148.03,148.0,6.7549]
[1751698539945,5.75018459,148.02,148.0,6.7549]
[1751698540147,9.08955261,148.03,148.0,6.7549]
[1751698540447,5.74910974,148.02,148.0,6.7549]
[1751698540647,9.08955261,148.03,148.0,6.7549]
[1751698541139,2.33565261,148.03,148.01,6.7546]
[1751698541346,9.08905261,148.04,148.01,6.7546]
[1751698541545,5.74819828,148.03,148.01,6.7546]
[1751698541745,9.08905261,148.04,148.01,6.7546]
[1751698541949,5.74819828,148.03,148.01,6.7546]
[1751698542151,9.08905261,148.04,148.0,9.09045261]
[1751698542352,5.74817009,148.03,148.0,9.09045261]
[1751698542550,6.7537,148.03,148.0,9.09045261]
[1751698543249,2.2391,148.06,148.02,2.33565261]
[1751698543449,5.7481329,148.05,148.03,2.33565261]
[1751698543648,2.33565261,148.07,148.03,2.33565261]
[1751698543850,5.74800285,148.06,148.03,2.33565261]
[1751698544044,5.74800285,148.05,148.03,2.33565261]
[1751698544245,2.33565261,148.07,148.03,2.33565261]
[1751698544551,5.75428747,148.06,148.04,2.33565261]
[1751698544748,5.75428747,148.05,148.04,2.33565261]
[1751698544954,2.33565261,148.08,148.04,2.33565261]
[1751698545252,5.75381239,148.07,148.04,2.33565261]
[1751698545552,57.14141378,148.1,148.05,2.33565261]
[1751698545553,59.47706639,148.1,148.05,2.33565261]
[1751698545749,5.75362195,148.09,148.05,2.33565261]
[1751698546051,5.75362195,148.08,148.06,2.33565261]
[1751698546245,7.03305261,148.1,148.06,2.33565261]
[1751698546441,5.75444493,148.09,148.06,2.33565261]
[1751698546640,5.75444493,148.08,148.07,2.33565261]
[1751698547457,5.75444493,148.08,148.07,9.08745261]
[1751698547655,5.75444493,148.08,148.06,2.33565261]
[1751698547856,6.751,148.09,148.06,6.7519]
[1751698548058,5.75526627,148.08,148.04,3.64583735]
[1751698548256,6.751,148.09,148.04,3.64583735]
[1751698548449,5.75627152,148.08,148.04,3.64583735]
[1751698548649,6.751,148.09,148.06,6.7519]
[1751698548844,5.75627152,148.08,148.06,6.7519]
[1751698549053,6.751,148.09,148.06,6.7519]
[1751698549256,12.50767152,148.08,148.05,6.7526]
[1751698549456,6.7514,148.08,148.05,6.7526]
[1751698549756,5.75759736,148.07,148.02,200.65653735]
[1751698550058,10.98141378,148.1,148.02,200.65653735]
[1751698550256,10.45008832,148.09,148.02,200.65653735]
[1751698550462,5.75759992,148.08,148.02,200.65653735]
[1751698550756,12.50949992,148.07,148.04,6.7531]
[1751698550956,6.7519,148.07,148.04,6.7531]
[1751698551354,6.7516,148.08,148.02,200.65653735]
[1751698551561,5.759319,148.07,148.02,200.65653735]
[1751698551855,6.7516,148.08,148.02,200.65653735]
[1751698552056,5.759319,148.07,148.05,6.7527]
[1751698552357,6.752,148.07,148.03,194.56]
[1751698553558,6.752,148.07,148.04,6.753]
[1751698556656,6.7516,148.08,148.04,6.753]
[1751698557254,6.7511,148.09,148.05,6.7527]
[1751698557655,6.7511,148.09,148.04,3.64583735]
[1751698558562,6.7511,148.09,148.06,6.7521]
[1751698558859,6.7515,148.08,148.04,3.64583735]
[1751698559560,6.7515,148.08,148.05,6.7526]
[1751698560264,5.79991129,148.07,148.05,6.7526]
[1751698560453,6.7515,148.08,148.05,6.7526]
[1751698560652,5.79988809,148.07,148.05,6.7526]
[1751698560862,6.7515,148.08,148.05,6.7526]
[1751698561059,5.79989127,148.07,148.05,6.7526]
[1751698561260,6.751,148.09,148.06,6.7521]
[1751698561460,5.79974318,148.08,148.06,6.7521]
[1751698561663,5.79974318,148.07,148.04,3.64583735]
[1751698561860,6.751,148.09,148.06,6.7519]
[1751698562060,5.7997422,148.08,148.06,6.7519]
[1751698562262,5.7997422,148.07,148.06,6.7519]
[1751698562568,6.7507,148.1,148.07,6.7515]
[1751698562760,5.79946444,148.09,148.06,49.74583735]
[1751698562959,6.29704011,148.12,148.06,49.74583735]
[1751698563160,10.49770384,148.11,148.06,49.74583735]
[1751698563459,5.7991204,148.1,148.06,49.74583735]
[1751698563655,5.7991204,148.09,148.08,6.7511]
[1751698565364,5.7991204,148.09,148.07,6.7516]
[1751698565569,6.7506,148.1,148.07,6.7516]
[1751698565759,5.80275216,148.09,148.07,6.7516]
[1751698565964,6.7506,148.1,148.07,6.7516]
[1751698566167,5.80275216,148.09,148.07,6.7516]
[1751698566369,6.7506,148.1,148.07,6.7516]
[1751698566565,5.80211439,148.09,148.07,6.7516]
[1751698566765,5.80211439,148.08,148.07,6.7516]
[1751698567768,6.7506,148.1,148.07,6.7516]
[1751698567975,5.80172463,148.09,148.07,6.7516]
[1751698568278,5.80172463,148.08,148.07,6.7516]
[1751698569674,5.80172463,148.08,148.06,56.49793735]
[1751698569876,5.82172101,148.07,148.06,46.1]
[1751698570378,5.82167248,148.07,148.06,46.1]
[1751698571277,9.94287746,148.11,148.06,46.1]
[1751698571481,10.55609165,148.1,148.06,46.1]
[1751698571682,6.7516,148.08,148.06,46.1]
[1751698573181,5.82131243,148.07,148.06,46.1]
[1751698576482,6.7516,148.08,148.06,52.8523]
[1751698576678,6.29198507,148.11,148.06,52.8523]
[1751698576877,6.7511,148.09,148.06,52.8523]
[1751698577182,5.81538248,148.08,148.06,52.8523]